[Event "Titled Tuesday Blitz April 12 Early 2022"]
[White "Ferreira, Vitor Hugo Vieira"]
[Black "Broca Jimenez, Fernando"]
[WhiteFideId "2119765"]
[BlackFideId "5104742"]
[WhiteElo "2165"]
[BlackElo "2062"]
[Result "1-0"]
[Round "03"]
[TimeControl "180+1"]
[Date "2022.04.13"]
[WhiteClock "0:01:20"]
[BlackClock "0:00:15"]

1. d4 {[%clk 0:02:56]}  Nf6 {[%clk 0:02:58]} 2. c4 {[%clk 0:02:56]}  e6 {[%clk 0:02:58]} 3. Nf3 {[%clk 0:02:55]}  b6 {[%clk 0:02:58]} 4. g3 {[%clk 0:02:55]}  Ba6 {[%clk 0:02:55]} 5. b3 {[%clk 0:02:52]}  d5 {[%clk 0:02:46]} 6. Bg2 {[%clk 0:02:49]}  Be7 {[%clk 0:02:47]} 7. O-O {[%clk 0:02:48]}  O-O {[%clk 0:02:47]} 8. Nbd2 {[%clk 0:02:43]}  Nbd7 {[%clk 0:02:43]} 9. Bb2 {[%clk 0:02:43]}  Rc8 {[%clk 0:02:40]} 10. Re1 {[%clk 0:02:42]}  Ne4 {[%clk 0:02:37]} 11. Rc1 {[%clk 0:02:33]}  f5 {[%clk 0:02:33]} 12. Ne5 {[%clk 0:02:30]}  Nxe5 {[%clk 0:02:25]} 13. dxe5 {[%clk 0:02:30]}  c6 {[%clk 0:02:16]} 14. Nxe4 {[%clk 0:02:23]}  dxe4 {[%clk 0:02:09]} 15. f3 {[%clk 0:02:09]}  Bb4 {[%clk 0:01:42]} 16. Qxd8 {[%clk 0:02:05]}  Rfxd8 {[%clk 0:01:40]} 17. Red1 {[%clk 0:02:05]}  Bd2 {[%clk 0:01:29]} 18. Rb1 {[%clk 0:02:04]}  e3 {[%clk 0:01:22]} 19. Bc1 {[%clk 0:02:03]}  Rd7 {[%clk 0:00:38]} 20. Bxd2 {[%clk 0:01:54]}  Rcd8 {[%clk 0:00:38]} 21. Rb2 {[%clk 0:01:49]}  Rxd2 {[%clk 0:00:36]} 22. Rdb1 {[%clk 0:01:34]}  Rxb2 {[%clk 0:00:22]} 23. Rxb2 {[%clk 0:01:34]}  Rd2 {[%clk 0:00:20]} 24. Rb1 {[%clk 0:01:34]}  Rxe2 {[%clk 0:00:20]} 25. Bf1 {[%clk 0:01:35]}  Rxa2 {[%clk 0:00:20]} 26. c5 {[%clk 0:01:35]}  e2 {[%clk 0:00:20]} 27. Bg2 {[%clk 0:01:32]}  Rd2 {[%clk 0:00:19]} 28. Re1 {[%clk 0:01:32]}  Rd1 {[%clk 0:00:19]} 29. Kf2 {[%clk 0:01:31]}  Rxe1 {[%clk 0:00:18]} 30. Kxe1 {[%clk 0:01:32]}  bxc5 {[%clk 0:00:19]} 31. f4 {[%clk 0:01:33]}  Kf7 {[%clk 0:00:19]} 32. Bxc6 {[%clk 0:01:33]}  Ke7 {[%clk 0:00:19]} 33. Bf3 {[%clk 0:01:33]}  Kd8 {[%clk 0:00:20]} 34. Bxe2 {[%clk 0:01:34]}  Bxe2 {[%clk 0:00:19]} 35. Kxe2 {[%clk 0:01:34]}  Kc7 {[%clk 0:00:19]} 36. Kd3 {[%clk 0:01:35]}  Kb6 {[%clk 0:00:19]} 37. Kc4 {[%clk 0:01:36]}  a5 {[%clk 0:00:18]} 38. h3 {[%clk 0:01:36]}  h5 {[%clk 0:00:17]} 39. Kd3 {[%clk 0:01:33]}  Kb5 {[%clk 0:00:16]} 40. Kc3 {[%clk 0:01:33]}  g6 {[%clk 0:00:13]} 41. h4 {[%clk 0:01:33]}  c4 {[%clk 0:00:10]} 42. bxc4+ {[%clk 0:01:31]}  Kc5 {[%clk 0:00:11]} 43. Kd3 {[%clk 0:01:26]}  a4 {[%clk 0:00:10]} 44. Kc3 {[%clk 0:01:26]}  a3 {[%clk 0:00:10]} 45. Kb3 {[%clk 0:01:26]}  a2 {[%clk 0:00:10]} 46. Kxa2 {[%clk 0:01:27]}  Kxc4 {[%clk 0:00:11]} 47. Ka3 {[%clk 0:01:27]}  Kd4 {[%clk 0:00:12]} 48. Kb4 {[%clk 0:01:28]}  Ke3 {[%clk 0:00:13]} 49. Kc5 {[%clk 0:01:29]}  Kf3 {[%clk 0:00:13]} 50. Kd6 {[%clk 0:01:29]}  Kxg3 {[%clk 0:00:14]} 51. Kxe6 {[%clk 0:01:30]}  Kxh4 {[%clk 0:00:11]} 52. Kf6 {[%clk 0:01:30]}  Kg4 {[%clk 0:00:12]} 53. e6 {[%clk 0:01:30]}  h4 {[%clk 0:00:13]} 54. e7 {[%clk 0:01:31]}  h3 {[%clk 0:00:14]} 55. e8=Q {[%clk 0:01:31]}  h2 {[%clk 0:00:15]} 56. Qe1 {[%clk 0:01:22]}  Kxf4 {[%clk 0:00:14]} 57. Qf2+ {[%clk 0:01:21]}  Kg4 {[%clk 0:00:14]} 58. Qxh2 {[%clk 0:01:20]}  f4 {[%clk 0:00:15]} 59. Kxg6 {[%clk 0:01:20]}  f3 {[%clk 0:00:15]} 60. Qg1+ {[%clk 0:01:19]}  Kf4 {[%clk 0:00:15]} 61. Qf2 {[%clk 0:01:19]}  Ke4 {[%clk 0:00:14]} 62. Kg5 {[%clk 0:01:19]}  Kd3 {[%clk 0:00:15]} 63. Kf4 {[%clk 0:01:20]} 1-0


[Site "https://www.chess.com"]

[Event "Titled Tuesday Blitz April 12 Early 2022"]
[White "Garv Gaur"]
[Black "Maltsevskaya, Aleksandra"]
[WhiteFideId "45030839"]
[BlackFideId "24174041"]
[WhiteElo "1950"]
[BlackElo "2235"]
[Result "0-1"]
[Round "03"]
[TimeControl "180+1"]
[Date "2022.04.13"]
[WhiteClock "0:01:13"]
[BlackClock "0:02:21"]

1. d4 {[%clk 0:03:00]}  Nf6 {[%clk 0:02:59]} 2. Nf3 {[%clk 0:03:00]}  g6 {[%clk 0:02:59]} 3. c4 {[%clk 0:03:00]}  d6 {[%clk 0:02:59]} 4. g3 {[%clk 0:03:00]}  Bg7 {[%clk 0:02:59]} 5. Bg2 {[%clk 0:03:00]}  O-O {[%clk 0:03:00]} 6. O-O {[%clk 0:03:00]}  Nbd7 {[%clk 0:03:01]} 7. Nc3 {[%clk 0:03:00]}  e5 {[%clk 0:03:01]} 8. e4 {[%clk 0:03:00]}  exd4 {[%clk 0:03:02]} 9. Nxd4 {[%clk 0:03:00]}  Nc5 {[%clk 0:03:02]} 10. h3 {[%clk 0:03:01]}  Re8 {[%clk 0:03:02]} 11. Re1 {[%clk 0:03:01]}  Bd7 {[%clk 0:03:02]} 12. Bf4 {[%clk 0:02:57]}  h6 {[%clk 0:03:01]} 13. e5 {[%clk 0:02:26]}  Nh5 {[%clk 0:02:47]} 14. exd6 {[%clk 0:01:56]}  Rxe1+ {[%clk 0:02:46]} 15. Qxe1 {[%clk 0:01:56]}  Nxf4 {[%clk 0:02:46]} 16. dxc7 {[%clk 0:01:49]}  Qc8 {[%clk 0:02:40]} 17. Ndb5 {[%clk 0:01:41]}  Nxg2 {[%clk 0:02:40]} 18. Kxg2 {[%clk 0:01:40]}  a6 {[%clk 0:02:40]} 19. Qe7 {[%clk 0:01:32]}  Bf8 {[%clk 0:02:33]} 20. Qe5 {[%clk 0:01:19]}  axb5 {[%clk 0:02:33]} 21. Nd5 {[%clk 0:01:19]}  Bc6 {[%clk 0:02:34]} 22. Kh2 {[%clk 0:01:17]}  Bxd5 {[%clk 0:02:34]} 23. cxd5 {[%clk 0:01:18]}  Qd7 {[%clk 0:02:25]} 24. b4 {[%clk 0:01:15]}  Nd3 {[%clk 0:02:24]} 25. Qd4 {[%clk 0:01:13]}  Nxb4 {[%clk 0:02:24]} 26. Rc1 {[%clk 0:01:13]}  Rc8 {[%clk 0:02:21]} 0-1


[Site "https://www.chess.com"]

[Event "Titled Tuesday Blitz April 12 Early 2022"]
[White "Hansen, Eric"]
[Black "Potapova, Margarita"]
[WhiteFideId "2606771"]
[BlackFideId "14126869"]
[WhiteElo "2568"]
[BlackElo "2216"]
[Result "1-0"]
[Round "03"]
[TimeControl "180+1"]
[Date "2022.04.13"]
[WhiteClock "0:00:03"]
[BlackClock "0:00:06"]

1. e4 {[%clk 0:02:59]}  c5 {[%clk 0:03:00]} 2. Nf3 {[%clk 0:02:59]}  d6 {[%clk 0:03:01]} 3. Bb5+ {[%clk 0:02:59]}  Nd7 {[%clk 0:02:59]} 4. c3 {[%clk 0:02:55]}  Nf6 {[%clk 0:02:57]} 5. Qe2 {[%clk 0:02:53]}  a6 {[%clk 0:02:56]} 6. Ba4 {[%clk 0:02:54]}  b5 {[%clk 0:02:54]} 7. Bc2 {[%clk 0:02:54]}  Bb7 {[%clk 0:02:53]} 8. O-O {[%clk 0:02:55]}  e6 {[%clk 0:02:52]} 9. d4 {[%clk 0:02:53]}  Qc7 {[%clk 0:02:53]} 10. Bd3 {[%clk 0:02:51]}  Be7 {[%clk 0:02:51]} 11. Re1 {[%clk 0:02:52]}  e5 {[%clk 0:02:37]} 12. d5 {[%clk 0:02:50]}  c4 {[%clk 0:02:36]} 13. Bc2 {[%clk 0:02:50]}  O-O {[%clk 0:02:33]} 14. b3 {[%clk 0:02:50]}  Nb6 {[%clk 0:02:19]} 15. h3 {[%clk 0:02:45]}  Nfd7 {[%clk 0:02:18]} 16. Be3 {[%clk 0:02:44]}  g6 {[%clk 0:02:14]} 17. Na3 {[%clk 0:02:35]}  cxb3 {[%clk 0:02:08]} 18. Bxb3 {[%clk 0:02:35]}  Nc5 {[%clk 0:02:05]} 19. Nd2 {[%clk 0:02:32]}  Bc8 {[%clk 0:02:00]} 20. Bh6 {[%clk 0:02:30]}  Re8 {[%clk 0:01:59]} 21. Qe3 {[%clk 0:02:22]}  Nca4 {[%clk 0:01:46]} 22. c4 {[%clk 0:02:08]}  b4 {[%clk 0:01:42]} 23. Nc2 {[%clk 0:02:08]}  a5 {[%clk 0:01:42]} 24. f4 {[%clk 0:01:37]}  Bf6 {[%clk 0:01:33]} 25. Kh1 {[%clk 0:01:26]}  Qc5 {[%clk 0:01:31]} 26. Qf3 {[%clk 0:01:24]}  Nc3 {[%clk 0:01:27]} 27. Rf1 {[%clk 0:01:15]}  Ra7 {[%clk 0:01:28]} 28. a3 {[%clk 0:00:44]}  exf4 {[%clk 0:01:06]} 29. axb4 {[%clk 0:00:41]}  Qc7 {[%clk 0:00:48]} 30. Bxf4 {[%clk 0:00:40]}  axb4 {[%clk 0:00:45]} 31. c5 {[%clk 0:00:30]}  Rxa1 {[%clk 0:00:39]} 32. Rxa1 {[%clk 0:00:29]}  Nd7 {[%clk 0:00:24]} 33. Bxd6 {[%clk 0:00:29]}  Qd8 {[%clk 0:00:23]} 34. Rf1 {[%clk 0:00:24]}  Ba6 {[%clk 0:00:21]} 35. Rf2 {[%clk 0:00:15]}  Kg7 {[%clk 0:00:16]} 36. Nxb4 {[%clk 0:00:15]}  Bb5 {[%clk 0:00:14]} 37. Nc6 {[%clk 0:00:12]}  Bxc6 {[%clk 0:00:10]} 38. dxc6 {[%clk 0:00:12]}  Ne5 {[%clk 0:00:07]} 39. Qxc3 {[%clk 0:00:12]}  Ng4 {[%clk 0:00:07]} 40. Rxf6 {[%clk 0:00:12]}  Nxf6 {[%clk 0:00:08]} 41. e5 {[%clk 0:00:12]}  Nh5 {[%clk 0:00:06]} 42. e6+ {[%clk 0:00:09]}  f6 {[%clk 0:00:07]} 43. c7 {[%clk 0:00:08]}  Qa8 {[%clk 0:00:07]} 44. Qf3 {[%clk 0:00:03]}  Qa1+ {[%clk 0:00:07]} 45. Kh2 {[%clk 0:00:04]}  Qd4 {[%clk 0:00:07]} 46. Qb7 {[%clk 0:00:04]}  Nf4 {[%clk 0:00:04]} 47. c8=Q+ {[%clk 0:00:03]}  Kh6 {[%clk 0:00:05]} 48. Qxe8 {[%clk 0:00:03]}  Ne2 {[%clk 0:00:06]} 49. Qf8+ {[%clk 0:00:03]}  Kg5 {[%clk 0:00:06]} 50. Nf3+ {[%clk 0:00:03]} 1-0


[Site "https://www.chess.com"]

[Event "Titled Tuesday Blitz April 12 Early 2022"]
[White "Janaszak, Dawid"]
[Black "De Arruda, Leandro Formes"]
[WhiteFideId "1119206"]
[BlackFideId "22722009"]
[WhiteElo "2199"]
[BlackElo "1852"]
[Result "1-0"]
[Round "03"]
[TimeControl "180+1"]
[Date "2022.04.13"]
[WhiteClock "0:00:37"]
[BlackClock "0:00:01"]

1. e4 {[%clk 0:03:00]}  e6 {[%clk 0:03:00]} 2. b3 {[%clk 0:02:59]}  d5 {[%clk 0:03:01]} 3. Bb2 {[%clk 0:02:59]}  dxe4 {[%clk 0:03:01]} 4. Nc3 {[%clk 0:02:57]}  Nf6 {[%clk 0:03:00]} 5. Qe2 {[%clk 0:02:57]}  Nc6 {[%clk 0:02:59]} 6. Nxe4 {[%clk 0:02:57]}  Nxe4 {[%clk 0:02:58]} 7. Qxe4 {[%clk 0:02:58]}  Qd5 {[%clk 0:02:48]} 8. Qe3 {[%clk 0:02:53]}  Nb4 {[%clk 0:02:28]} 9. Qc3 {[%clk 0:02:28]}  Qe4+ {[%clk 0:02:26]} 10. Kd1 {[%clk 0:02:28]}  Nd5 {[%clk 0:02:14]} 11. Qg3 {[%clk 0:02:14]}  f6 {[%clk 0:01:47]} 12. Bd3 {[%clk 0:02:09]}  Qb4 {[%clk 0:01:46]} 13. Bxh7 {[%clk 0:02:06]}  Bd7 {[%clk 0:01:11]} 14. Bg6+ {[%clk 0:02:05]}  Kd8 {[%clk 0:01:11]} 15. a3 {[%clk 0:01:50]}  Qb6 {[%clk 0:01:09]} 16. Be4 {[%clk 0:01:43]}  Ne7 {[%clk 0:00:37]} 17. Ne2 {[%clk 0:01:35]}  Nc6 {[%clk 0:00:35]} 18. Nf4 {[%clk 0:01:27]}  f5 {[%clk 0:00:20]} 19. Bf3 {[%clk 0:01:17]}  Rg8 {[%clk 0:00:17]} 20. Qh4+ {[%clk 0:01:09]}  Be7 {[%clk 0:00:16]} 21. Qh7 {[%clk 0:01:09]}  Re8 {[%clk 0:00:15]} 22. Nd3 {[%clk 0:01:00]}  Bf6 {[%clk 0:00:11]} 23. Bxf6+ {[%clk 0:00:59]}  gxf6 {[%clk 0:00:12]} 24. Bh5 {[%clk 0:00:58]}  Rf8 {[%clk 0:00:10]} 25. Qg7 {[%clk 0:00:57]}  Re8 {[%clk 0:00:07]} 26. Bxe8 {[%clk 0:00:53]}  Bxe8 {[%clk 0:00:08]} 27. Qxf6+ {[%clk 0:00:49]}  Ne7 {[%clk 0:00:07]} 28. Re1 {[%clk 0:00:45]}  Bd7 {[%clk 0:00:05]} 29. Ne5 {[%clk 0:00:42]}  c5 {[%clk 0:00:02]} 30. Nf7+ {[%clk 0:00:39]}  Kc7 {[%clk 0:00:02]} 31. Qxe7 {[%clk 0:00:38]}  Qc6 {[%clk 0:00:01]} 32. Ne5 {[%clk 0:00:37]}  Rd8 {[%clk 0:00:01]} 33. Nxc6 {[%clk 0:00:37]} 1-0


[Site "https://www.chess.com"]

[Event "Titled Tuesday Blitz April 12 Early 2022"]
[White "Jeet, Jain"]
[Black "Sanchez, Robert"]
[WhiteFideId "5073022"]
[BlackFideId "2034360"]
[WhiteElo "2085"]
[BlackElo "2363"]
[Result "1-0"]
[Round "03"]
[TimeControl "180+1"]
[Date "2022.04.13"]
[WhiteClock "0:00:11"]
[BlackClock "0:00:09"]

1. d4 {[%clk 0:03:00]}  d5 {[%clk 0:02:59]} 2. Nf3 {[%clk 0:03:00]}  c6 {[%clk 0:03:00]} 3. c4 {[%clk 0:03:00]}  Nf6 {[%clk 0:03:00]} 4. Nc3 {[%clk 0:02:58]}  dxc4 {[%clk 0:03:00]} 5. a4 {[%clk 0:02:57]}  Bf5 {[%clk 0:02:59]} 6. e3 {[%clk 0:02:56]}  e6 {[%clk 0:02:59]} 7. Bxc4 {[%clk 0:02:56]}  Bb4 {[%clk 0:02:56]} 8. O-O {[%clk 0:02:56]}  O-O {[%clk 0:02:57]} 9. Qb3 {[%clk 0:02:56]}  Qe7 {[%clk 0:02:48]} 10. Bd2 {[%clk 0:02:53]}  a5 {[%clk 0:02:43]} 11. Ne2 {[%clk 0:02:49]}  Na6 {[%clk 0:02:29]} 12. Ng3 {[%clk 0:02:38]}  Bg6 {[%clk 0:02:27]} 13. Rfd1 {[%clk 0:02:17]}  c5 {[%clk 0:02:17]} 14. Bxb4 {[%clk 0:02:10]}  Nxb4 {[%clk 0:02:15]} 15. Rac1 {[%clk 0:02:09]}  cxd4 {[%clk 0:02:06]} 16. Nxd4 {[%clk 0:02:00]}  Rac8 {[%clk 0:02:05]} 17. Bb5 {[%clk 0:01:11]}  h5 {[%clk 0:01:47]} 18. h3 {[%clk 0:00:53]}  h4 {[%clk 0:01:46]} 19. Nge2 {[%clk 0:00:53]}  e5 {[%clk 0:01:29]} 20. Nf4 {[%clk 0:00:54]}  exf4 {[%clk 0:01:27]} 21. exf4 {[%clk 0:00:50]}  Rxc1 {[%clk 0:01:19]} 22. Rxc1 {[%clk 0:00:50]}  Qe4 {[%clk 0:01:17]} 23. Nf3 {[%clk 0:00:44]}  Qxf4 {[%clk 0:01:15]} 24. Rc4 {[%clk 0:00:44]}  Ne4 {[%clk 0:00:58]} 25. Rd4 {[%clk 0:00:27]}  Qc1+ {[%clk 0:00:53]} 26. Rd1 {[%clk 0:00:26]}  Qc2 {[%clk 0:00:46]} 27. Qxc2 {[%clk 0:00:26]}  Nxc2 {[%clk 0:00:47]} 28. Nxh4 {[%clk 0:00:27]}  Bh7 {[%clk 0:00:42]} 29. Rd7 {[%clk 0:00:27]}  b6 {[%clk 0:00:40]} 30. Rb7 {[%clk 0:00:27]}  g5 {[%clk 0:00:33]} 31. Nf3 {[%clk 0:00:26]}  Rd8 {[%clk 0:00:31]} 32. Ne5 {[%clk 0:00:20]}  Rd1+ {[%clk 0:00:29]} 33. Kh2 {[%clk 0:00:20]}  Nxf2 {[%clk 0:00:26]} 34. Nxf7 {[%clk 0:00:21]}  Ne4 {[%clk 0:00:20]} 35. Nh6+ {[%clk 0:00:20]}  Kh8 {[%clk 0:00:19]} 36. Bc4 {[%clk 0:00:19]}  Ne3 {[%clk 0:00:15]} 37. Nf7+ {[%clk 0:00:18]}  Kg7 {[%clk 0:00:14]} 38. Nxg5+ {[%clk 0:00:18]}  Kg6 {[%clk 0:00:10]} 39. Nxe4 {[%clk 0:00:17]}  Nf1+ {[%clk 0:00:10]} 40. Kg1 {[%clk 0:00:17]}  Ng3+ {[%clk 0:00:10]} 41. Kh2 {[%clk 0:00:16]}  Nxe4 {[%clk 0:00:11]} 42. Rxb6+ {[%clk 0:00:15]}  Kg5 {[%clk 0:00:10]} 43. Be6 {[%clk 0:00:12]}  Kf4 {[%clk 0:00:09]} 44. Rb3 {[%clk 0:00:11]} 1-0


[Site "https://www.chess.com"]

[Event "Titled Tuesday Blitz April 12 Early 2022"]
[White "Jumabayev, Rinat"]
[Black "Seo, Jung Min"]
[WhiteFideId "13702661"]
[BlackFideId "1734687"]
[WhiteElo "2561"]
[BlackElo "2401"]
[Result "1-0"]
[Round "03"]
[TimeControl "180+1"]
[Date "2022.04.12"]
[WhiteClock "0:01:31"]
[BlackClock "0:01:23"]

1. d4 {[%clk 0:03:00]}  Nf6 {[%clk 0:03:00]} 2. c4 {[%clk 0:02:58]}  e6 {[%clk 0:03:00]} 3. Nc3 {[%clk 0:02:57]}  Bb4 {[%clk 0:03:00]} 4. Nf3 {[%clk 0:02:56]}  O-O {[%clk 0:02:59]} 5. e3 {[%clk 0:02:56]}  d5 {[%clk 0:02:59]} 6. Bd3 {[%clk 0:02:57]}  c5 {[%clk 0:02:56]} 7. O-O {[%clk 0:02:53]}  dxc4 {[%clk 0:02:54]} 8. Bxc4 {[%clk 0:02:53]}  Nc6 {[%clk 0:02:47]} 9. a3 {[%clk 0:02:42]}  Bxc3 {[%clk 0:02:46]} 10. bxc3 {[%clk 0:02:43]}  Qc7 {[%clk 0:02:46]} 11. h3 {[%clk 0:02:43]}  Rd8 {[%clk 0:02:35]} 12. Ba2 {[%clk 0:02:41]}  e5 {[%clk 0:02:34]} 13. Bb2 {[%clk 0:02:40]}  h6 {[%clk 0:02:30]} 14. Qe2 {[%clk 0:02:38]}  b6 {[%clk 0:02:26]} 15. Rfd1 {[%clk 0:02:37]}  Bb7 {[%clk 0:02:16]} 16. d5 {[%clk 0:02:35]}  e4 {[%clk 0:02:13]} 17. Nh4 {[%clk 0:01:40]}  Ne5 {[%clk 0:02:02]} 18. c4 {[%clk 0:01:40]}  b5 {[%clk 0:01:42]} 19. Nf5 {[%clk 0:01:33]}  Qd7 {[%clk 0:01:23]} 20. Nxh6+ {[%clk 0:01:31]} 1-0


[Site "https://www.chess.com"]

[Event "Titled Tuesday Blitz April 12 Early 2022"]
[White "Karas, Marek"]
[Black "Roebers, Jan"]
[WhiteFideId "14928558"]
[BlackFideId "1007815"]
[WhiteElo "2271"]
[BlackElo "2147"]
[Result "1-0"]
[Round "03"]
[TimeControl "180+1"]
[Date "2022.04.13"]
[WhiteClock "0:00:57"]
[BlackClock "0:00:08"]

1. c4 {[%clk 0:02:58]}  Nf6 {[%clk 0:02:59]} 2. Nc3 {[%clk 0:02:53]}  g6 {[%clk 0:02:59]} 3. d4 {[%clk 0:02:51]}  Bg7 {[%clk 0:02:58]} 4. e4 {[%clk 0:02:51]}  d6 {[%clk 0:02:56]} 5. Nf3 {[%clk 0:02:47]}  O-O {[%clk 0:02:55]} 6. Be2 {[%clk 0:02:47]}  Bg4 {[%clk 0:02:54]} 7. Be3 {[%clk 0:02:46]}  Bxf3 {[%clk 0:02:49]} 8. Bxf3 {[%clk 0:02:46]}  e5 {[%clk 0:02:49]} 9. d5 {[%clk 0:02:42]}  a5 {[%clk 0:02:48]} 10. O-O {[%clk 0:02:42]}  Nbd7 {[%clk 0:02:48]} 11. a3 {[%clk 0:02:42]}  b6 {[%clk 0:02:47]} 12. b4 {[%clk 0:02:42]}  axb4 {[%clk 0:02:46]} 13. axb4 {[%clk 0:02:43]}  Qe7 {[%clk 0:02:45]} 14. Nb5 {[%clk 0:02:38]}  Rxa1 {[%clk 0:02:37]} 15. Qxa1 {[%clk 0:02:37]}  Ne8 {[%clk 0:02:37]} 16. Qa7 {[%clk 0:02:35]}  f5 {[%clk 0:02:24]} 17. Nxc7 {[%clk 0:02:24]}  fxe4 {[%clk 0:02:23]} 18. Bxe4 {[%clk 0:02:23]}  Ndf6 {[%clk 0:02:22]} 19. Bd3 {[%clk 0:02:10]}  Qxc7 {[%clk 0:02:05]} 20. Qxc7 {[%clk 0:02:10]}  Nxc7 {[%clk 0:02:05]} 21. Bxb6 {[%clk 0:02:10]}  Na8 {[%clk 0:01:59]} 22. Be3 {[%clk 0:02:08]}  e4 {[%clk 0:01:59]} 23. Be2 {[%clk 0:02:07]}  Nd7 {[%clk 0:01:57]} 24. c5 {[%clk 0:02:02]}  dxc5 {[%clk 0:01:56]} 25. bxc5 {[%clk 0:02:00]}  Ne5 {[%clk 0:01:52]} 26. Rd1 {[%clk 0:01:49]}  Nc7 {[%clk 0:01:48]} 27. c6 {[%clk 0:01:30]}  Nd3 {[%clk 0:01:29]} 28. d6 {[%clk 0:01:23]}  Nd5 {[%clk 0:01:21]} 29. Bxd3 {[%clk 0:01:20]}  Nxe3 {[%clk 0:00:31]} 30. fxe3 {[%clk 0:01:17]}  exd3 {[%clk 0:00:24]} 31. Rxd3 {[%clk 0:01:15]}  Be5 {[%clk 0:00:24]} 32. Rd5 {[%clk 0:01:08]}  Re8 {[%clk 0:00:10]} 33. Rxe5 {[%clk 0:00:58]}  Rxe5 {[%clk 0:00:08]} 34. d7 {[%clk 0:00:57]} 1-0


[Site "https://www.chess.com"]

[Event "Titled Tuesday Blitz April 12 Early 2022"]
[White "Kobalia, Mikhail"]
[Black "Caruana, Fabiano"]
[WhiteFideId "4119150"]
[BlackFideId "2020009"]
[WhiteElo "2667"]
[BlackElo "2744"]
[Result "1-0"]
[Round "03"]
[TimeControl "180+1"]
[Date "2022.04.12"]
[WhiteClock "0:00:27"]
[BlackClock "0:00:10"]

1. e4 {[%clk 0:03:00]}  e5 {[%clk 0:02:59]} 2. Nf3 {[%clk 0:03:00]}  Nf6 {[%clk 0:02:59]} 3. Nxe5 {[%clk 0:02:57]}  d6 {[%clk 0:02:59]} 4. Nf3 {[%clk 0:02:58]}  Nxe4 {[%clk 0:02:59]} 5. d4 {[%clk 0:02:58]}  d5 {[%clk 0:02:59]} 6. Bd3 {[%clk 0:02:58]}  Bd6 {[%clk 0:02:59]} 7. O-O {[%clk 0:02:58]}  O-O {[%clk 0:02:59]} 8. c4 {[%clk 0:02:58]}  c6 {[%clk 0:03:00]} 9. Nc3 {[%clk 0:02:58]}  Nxc3 {[%clk 0:03:00]} 10. bxc3 {[%clk 0:02:59]}  dxc4 {[%clk 0:02:59]} 11. Bxc4 {[%clk 0:02:58]}  Bf5 {[%clk 0:03:00]} 12. Bg5 {[%clk 0:02:54]}  Qa5 {[%clk 0:02:59]} 13. d5 {[%clk 0:02:16]}  Be4 {[%clk 0:02:39]} 14. dxc6 {[%clk 0:02:12]}  Bxf3 {[%clk 0:02:39]} 15. Qxf3 {[%clk 0:02:08]}  Nxc6 {[%clk 0:02:39]} 16. Qd5 {[%clk 0:01:57]}  Qxc3 {[%clk 0:02:29]} 17. Rac1 {[%clk 0:01:45]}  Qe5 {[%clk 0:02:28]} 18. Qxe5 {[%clk 0:01:45]}  Bxe5 {[%clk 0:02:25]} 19. Rfd1 {[%clk 0:01:41]}  Rac8 {[%clk 0:02:23]} 20. Rd7 {[%clk 0:01:35]}  Rc7 {[%clk 0:02:10]} 21. Rxc7 {[%clk 0:01:29]}  Bxc7 {[%clk 0:02:11]} 22. Bd5 {[%clk 0:01:30]}  Rc8 {[%clk 0:02:09]} 23. Kf1 {[%clk 0:01:28]}  Bb6 {[%clk 0:02:06]} 24. Rd1 {[%clk 0:01:12]}  h6 {[%clk 0:02:04]} 25. Bh4 {[%clk 0:01:11]}  g5 {[%clk 0:02:04]} 26. Bg3 {[%clk 0:01:10]}  Rd8 {[%clk 0:02:04]} 27. Bf3 {[%clk 0:01:03]}  Rxd1+ {[%clk 0:02:01]} 28. Bxd1 {[%clk 0:01:04]}  Kg7 {[%clk 0:01:55]} 29. Ke2 {[%clk 0:01:03]}  Bd4 {[%clk 0:01:52]} 30. Kd3 {[%clk 0:01:02]}  Be5 {[%clk 0:01:52]} 31. Kc4 {[%clk 0:01:01]}  Bxg3 {[%clk 0:01:50]} 32. hxg3 {[%clk 0:01:01]}  Kf6 {[%clk 0:01:51]} 33. Kc5 {[%clk 0:00:58]}  Ke5 {[%clk 0:01:48]} 34. Bf3 {[%clk 0:00:56]}  Nd8 {[%clk 0:01:48]} 35. a4 {[%clk 0:00:51]}  f5 {[%clk 0:01:40]} 36. Bd5 {[%clk 0:00:50]}  b6+ {[%clk 0:01:14]} 37. Kc4 {[%clk 0:00:50]}  Kd6 {[%clk 0:01:13]} 38. Bf3 {[%clk 0:00:46]}  Ne6 {[%clk 0:01:10]} 39. Bd1 {[%clk 0:00:46]}  a6 {[%clk 0:00:56]} 40. Bc2 {[%clk 0:00:44]}  Ke5 {[%clk 0:00:55]} 41. Bd1 {[%clk 0:00:40]}  g4 {[%clk 0:00:52]} 42. Bc2 {[%clk 0:00:39]}  h5 {[%clk 0:00:51]} 43. Kb4 {[%clk 0:00:36]}  f4 {[%clk 0:00:38]} 44. Bd3 {[%clk 0:00:31]}  fxg3 {[%clk 0:00:24]} 45. fxg3 {[%clk 0:00:32]}  Nc5 {[%clk 0:00:24]} 46. Bg6 {[%clk 0:00:31]}  Kf6 {[%clk 0:00:21]} 47. Bxh5 {[%clk 0:00:30]}  Kg5 {[%clk 0:00:22]} 48. Be8 {[%clk 0:00:29]}  Ne4 {[%clk 0:00:19]} 49. Bc6 {[%clk 0:00:28]}  Nxg3 {[%clk 0:00:14]} 50. Bb7 {[%clk 0:00:28]}  a5+ {[%clk 0:00:13]} 51. Kb5 {[%clk 0:00:27]}  Ne2 {[%clk 0:00:09]} 52. Kxb6 {[%clk 0:00:27]}  Kf4 {[%clk 0:00:09]} 53. Kxa5 {[%clk 0:00:27]}  Kg3 {[%clk 0:00:08]} 54. Kb6 {[%clk 0:00:26]}  Nf4 {[%clk 0:00:09]} 55. a5 {[%clk 0:00:26]}  Nxg2 {[%clk 0:00:10]} 56. a6 {[%clk 0:00:27]} 1-0


[Site "https://www.chess.com"]